bitfinex/quotes_ETHUSD_20251006
["timestamp","ask_amount","ask_price","bid_price","bid_amount"]
[1759773864120,5.40954182,4690.5,4690.3,0.001]
[1759773864317,5.40954182,4690.5,4690.3,2.432]
[1759773864516,5.40954182,4690.5,4690.3,0.001]
[1759773865248,7.80954182,4690.5,4690.3,0.001]
[1759773865447,9.03954182,4690.5,4690.3,0.001]
[1759773866821,10.26954182,4690.5,4690.3,0.001]
[1759773868152,11.49954182,4690.5,4690.3,0.001]
[1759773869248,13.74154182,4690.5,4690.3,0.001]
[1759773869472,12.72954182,4690.5,4690.3,0.001]
[1759773870821,13.95954182,4690.5,4690.3,0.001]
[1759773872048,14.06594182,4690.5,4690.3,0.001]
[1759773872243,15.29594182,4690.5,4690.3,0.001]
[1759773873875,16.52594182,4690.5,4690.3,0.001]
[1759773874481,16.72212875,4690.5,4690.3,0.001]
[1759773875166,17.95212875,4690.5,4690.3,0.001]
[1759773876680,19.18212875,4690.5,4690.3,0.001]
[1759773877742,18.72222875,4690.5,4690.3,0.001]
[1759773877943,17.55222875,4690.5,4690.3,0.001]
[1759773878476,18.00732875,4690.5,4690.3,0.001]
[1759773878877,17.55222875,4690.5,4690.3,0.001]
[1759773879379,18.78222875,4690.5,4690.3,0.001]
[1759773879971,17.8281558,4690.5,4690.3,0.001]
[1759773880282,16.99836887,4690.5,4690.4,0.4527]
[1759773880446,17.63196887,4690.5,4690.4,0.4527]
[1759773880778,18.86196887,4690.5,4690.4,0.4527]
[1759773881145,18.22836887,4690.5,4690.4,0.4527]
[1759773881673,18.86196887,4690.5,4690.4,0.4527]
[1759773882380,20.09196887,4690.5,4690.4,0.4527]
[1759773883289,20.09196887,4690.5,4690.4,0.001]
[1759773883451,21.32196887,4690.5,4690.4,0.001]
[1759773884766,21.5194037,4690.5,4690.4,0.001]
[1759773884972,22.7494037,4690.5,4690.4,0.001]
[1759773885481,22.7494037,4690.5,4690.4,2.8997]
[1759773885883,22.7494037,4690.5,4690.4,2.448]
[1759773886298,23.9794037,4690.5,4690.4,0.001]
[1759773886450,26.57132432,4690.5,4690.4,0.001]
[1759773886651,26.11622432,4690.5,4690.4,0.001]
[1759773887614,27.34622432,4690.5,4690.4,0.001]
[1759773888609,25.2094037,4690.5,4690.4,0.001]
[1759773889013,26.4394037,4690.5,4690.4,0.001]
[1759773889209,26.4394037,4690.5,4690.4,0.4527]
[1759773889601,26.4394037,4690.5,4690.4,0.001]
[1759773890416,27.6694037,4690.5,4690.4,0.001]
[1759773891620,24.90383483,4690.5,4690.4,0.4527]
[1759773891928,28.06836887,4690.5,4690.4,0.74347]
[1759773892243,25.9364,4690.5,4690.4,0.74347]
[1759773892596,25.9364,4690.5,4690.4,0.4527]
[1759773892805,28.06836887,4690.5,4690.4,0.4527]
[1759773893302,27.1664,4690.5,4690.4,0.4527]
[1759773893784,29.29836887,4690.5,4690.4,0.4527]
[1759773894213,27.1664,4690.5,4690.4,0.4527]
[1759773894414,27.1664,4690.5,4690.4,12.831987]
[1759773894608,28.3964,4690.5,4690.4,9.082995]
[1759773894812,28.3964,4690.5,4690.4,13.36435132]
[1759773895014,28.29,4690.5,4690.4,13.36435132]
[1759773895244,28.29,4690.5,4690.4,9.768863]
[1759773895461,28.29,4690.5,4690.4,20.15228032]
[1759773895627,28.29,4690.5,4690.4,19.85099232]
[1759773895826,29.52,4690.5,4690.4,19.85099232]
[1759773896027,29.52,4690.5,4690.4,17.40499232]
[1759773896258,29.52,4690.5,4690.4,19.85099232]
[1759773896428,29.52,4690.5,4690.4,25.54084632]
[1759773896758,29.52,4690.5,4690.4,25.29322732]
[1759773897440,30.75,4690.5,4690.4,25.99453532]
[1759773898045,30.75,4690.5,4690.4,25.56864032]
[1759773898233,30.75,4690.5,4690.4,19.31670332]
[1759773898571,30.75,4690.5,4690.4,21.68613132]
[1759773898768,31.98,4690.5,4690.4,21.68613132]
[1759773899054,31.98,4690.5,4690.4,21.79253132]
[1759773899248,31.98,4690.5,4690.4,19.34753132]
[1759773899442,31.98,4690.5,4690.4,24.00753132]
[1759773899652,31.98,4690.5,4690.4,35.83792132]
[1759773900178,33.21,4690.5,4690.4,35.83792132]
[1759773900668,33.21,4690.5,4690.4,16.33083332]
[1759773900968,33.21,4690.5,4690.4,13.96979632]
[1759773901522,34.44,4690.5,4690.4,37.82688432]
[1759773902948,35.67,4690.5,4690.4,37.82688432]
[1759773903265,21.66557543,4690.5,4690.4,38.08979717]
[1759773903466,21.66557543,4690.5,4690.4,38.36180988]
[1759773903759,21.66557543,4690.5,4690.4,38.08979717]
[1759773904261,17.49832633,4690.5,4690.4,38.08979717]
[1759773904435,17.49832633,4690.5,4690.4,41.82680502]
[1759773904759,0.002,4690.8,4690.7,2.13187797]
[1759773905056,0.002,4690.8,4690.7,12.78310782]
[1759773905256,0.002,4690.8,4690.7,43.23080782]
[1759773905726,1.232,4690.8,4690.7,43.23080782]
[1759773906663,1.232,4690.8,4690.7,38.57180782]
[1759773906865,1.232,4690.8,4690.7,43.23080782]
[1759773907239,2.462,4690.8,4690.7,43.23080782]
[1759773907450,2.462,4690.9,4690.8,4.53183252]
[1759773907668,1e-08,4690.9,4690.8,34.97953252]
[1759773907877,1e-08,4690.9,4690.8,35.24244537]
[1759773908072,1e-08,4690.9,4690.8,35.87604537]
[1759773908229,1e-08,4690.9,4690.8,38.03909228]
[1759773908433,1e-08,4690.9,4690.8,36.14805808]
[1759773908668,1e-08,4690.9,4690.8,40.80605808]
[1759773909630,1e-08,4690.9,4690.8,10.80605808]
[1759773909832,1e-08,4690.9,4690.8,40.80605808]
[1759773910193,4.75856415,4691.4,4690.9,0.6336]
[1759773910392,0.17331532,4691.4,4691.3,2.13160531]
[1759773910685,0.17331532,4691.4,4691.3,11.60432914]
[1759773911063,0.17331532,4691.4,4691.3,40.08423087]
[1759773911583,1.40331532,4691.4,4691.3,37.10730531]
[1759773911773,1.40331532,4691.4,4691.3,41.76330531]
[1759773912980,2.63331532,4691.4,4691.3,41.76330531]
[1759773914078,2.63331532,4691.4,4691.3,41.76230531]
[1759773914254,3.86331532,4691.4,4691.3,41.76230531]
[1759773914653,3.86331532,4691.4,4691.3,42.29723087]
[1759773915685,0.002,4691.8,4691.7,2.13142357]
[1759773915856,0.002,4691.8,4691.7,37.23433642]
[1759773916055,0.002,4691.8,4691.7,37.68203642]
[1759773917071,1.232,4691.8,4691.7,37.68203642]
[1759773918090,1.232,4691.8,4691.7,39.55473642]
[1759773918387,1.232,4691.8,4691.7,40.00143642]
[1759773918570,2.462,4691.8,4691.7,40.00143642]
[1759773919594,2.462,4691.8,4691.7,34.63782357]
[1759773919793,2.462,4691.8,4691.7,39.29082357]
[1759773920000,3.692,4691.8,4691.7,39.29082357]
[1759773920361,3.692,4691.8,4691.7,35.08552357]
[1759773920560,3.692,4691.8,4691.7,39.29082357]
[1759773920867,3.692,4691.8,4691.7,39.28982357]
[1759773921179,4.922,4691.8,4691.7,39.28982357]
[1759773922298,4.922,4691.8,4691.7,34.63782357]
[1759773922601,5.3567,4691.8,4691.7,23.17799957]
[1759773922765,6.5867,4691.8,4691.7,23.17799957]
[1759773923163,6.5867,4691.8,4691.7,4.63782357]
[1759773923383,6.152,4691.8,4691.7,39.28882357]
[1759773924095,7.382,4691.8,4691.7,34.63782357]
[1759773924291,7.382,4691.8,4691.7,39.28882357]
[1759773924470,1.40824916,4691.8,4691.7,41.68411021]
[1759773924674,1.40824916,4691.8,4691.7,37.03311021]
[1759773924871,1.40824916,4691.8,4691.7,37.22453282]
[1759773925085,1.40824916,4691.8,4691.7,36.05048465]
[1759773925316,1.40824916,4691.8,4691.7,37.26124857]
[1759773925522,2.63824916,4691.8,4691.7,37.26124857]
[1759773926230,2.63824916,4691.8,4691.7,39.44533642]
[1759773926439,2.63824916,4691.8,4691.7,39.89303642]
[1759773926621,2.63824916,4691.8,4691.7,34.79433642]
[1759773926801,3.86824916,4691.8,4691.7,39.44533642]
[1759773927295,3.86824916,4691.8,4691.7,39.44433642]
[1759773928095,5.09824916,4691.8,4691.7,41.4110975]
[1759773928296,5.09824916,4691.8,4691.7,39.89203642]
[1759773928494,5.09824916,4691.8,4691.7,39.44433642]
[1759773928911,5.09824916,4691.8,4691.7,40.9633975]
[1759773929108,5.09824916,4691.8,4691.7,9.44433642]
[1759773929433,5.09824916,4691.8,4691.7,40.9633975]
[1759773929595,6.32824916,4691.8,4691.7,34.8133015]
[1759773929799,6.32824916,4691.8,4691.7,37.94424042]
[1759773930096,6.32824916,4691.8,4691.7,9.44433642]
[1759773930330,6.32824916,4691.8,4691.7,39.44433642]
[1759773931104,7.55824916,4691.8,4691.7,40.9633975]
[1759773931903,7.55824916,4691.8,4691.7,36.3133975]
[1759773932102,7.55824916,4691.8,4691.7,39.44433642]
[1759773932615,8.78824916,4691.8,4691.7,40.9723128]
[1759773933231,8.78824916,4691.8,4691.7,39.44433642]
[1759773933936,10.01824916,4691.8,4691.7,39.44433642]
[1759773934559,10.01824916,4691.8,4691.7,39.55073642]
[1759773935250,11.24824916,4691.8,4691.7,39.55073642]
[1759773935851,11.24824916,4691.8,4691.7,34.90073642]
[1759773936059,11.24824916,4691.8,4691.7,35.00502757]
[1759773936363,11.24824916,4691.8,4691.7,39.28582357]
[1759773936566,12.47824916,4691.8,4691.7,39.28582357]
[1759773937562,12.47824916,4691.8,4691.7,39.28482357]
[1759773937863,13.70824916,4691.8,4691.7,39.28482357]
[1759773938450,13.70824916,4691.8,4691.7,39.54773642]
[1759773939063,13.71024916,4691.8,4691.7,39.54773642]
[1759773939239,14.94024916,4691.8,4691.7,39.54773642]
[1759773940768,16.17024916,4691.8,4691.7,39.54773642]
[1759773941260,16.17024916,4691.8,4691.7,39.98673642]
[1759773941471,0.002,4692.3,4691.8,34.53137814]
[1759773941627,0.002,4692.3,4691.8,37.6333037]
[1759773942043,0.002,4692.3,4691.8,36.92229099]
[1759773942242,1.232,4691.9,4691.8,41.56829099]
[1759773943631,1.232,4691.9,4691.8,36.92229099]
[1759773943827,2.462,4691.9,4691.8,34.99473514]
[1759773944032,2.9269,4691.9,4691.8,41.55318358]
[1759773944232,2.9269,4691.9,4691.8,39.63973514]
[1759773944463,2.462,4691.9,4691.8,39.63973514]
[1759773944766,2.462,4691.9,4691.8,43.91973943]
[1759773944967,2.462,4691.9,4691.8,44.19175214]
[1759773945147,3.692,4691.9,4691.8,42.2783037]
[1759773945331,1.43112965,4691.9,4691.8,42.2783037]
[1759773945668,0.002,4692.3,4692.2,2.13119645]
[1759773945829,0.002,4692.3,4692.2,34.7941093]
[1759773946161,0.002,4692.3,4692.2,39.5455093]
[1759773946567,1.232,4692.3,4692.2,39.9845093]
[1759773947142,1.232,4692.3,4692.2,39.5455093]
[1759773947770,1.232,4692.3,4692.2,34.9005093]
[1759773948078,2.462,4692.3,4692.2,39.5455093]
[1759773948284,2.462,4692.3,4692.2,41.45894688]
[1759773948645,2.462,4692.3,4692.2,39.5455093]
[1759773949285,2.462,4692.3,4692.2,41.45894688]
[1759773949482,3.692,4692.3,4692.2,41.45894688]
[1759773950305,3.692,4692.3,4692.2,39.5455093]
[1759773950871,4.922,4692.3,4692.2,39.5455093]
[1759773951074,4.922,4692.3,4692.2,41.45877686]
[1759773951294,4.922,4692.3,4692.2,34.9005093]
[1759773951594,2.04828621,4692.3,4692.2,39.5445093]
[1759773951798,2.04828621,4692.3,4692.2,41.45777672]
[1759773952506,2.04828621,4692.3,4692.2,39.5445093]
[1759773952662,3.27828621,4692.3,4692.2,35.05424113]
[1759773953013,3.74318621,4692.3,4692.2,39.28059645]
[1759773954396,4.97318621,4692.3,4692.2,39.28059645]
[1759773955793,6.20318621,4692.3,4692.2,39.28059645]
[1759773955992,6.20318621,4692.3,4692.2,39.27959645]
[1759773956981,6.20518621,4692.3,4692.2,28.03924245]
[1759773957182,7.43518621,4692.3,4692.2,32.68124245]
[1759773957983,7.43518621,4692.3,4692.2,39.27959645]
[1759773958579,8.66518621,4692.3,4692.2,39.27959645]
[1759773958777,8.66518621,4692.3,4692.2,38.83654745]
[1759773959013,8.66518621,4692.3,4692.2,39.27959645]
[1759773959405,8.66518621,4692.3,4692.2,34.63759645]
[1759773959609,8.66518621,4692.3,4692.2,39.27859645]
[1759773960114,9.89518621,4692.3,4692.2,38.19006445]
[1759773960497,9.89518621,4692.3,4692.2,37.92307245]
[1759773960699,9.89518621,4692.3,4692.2,34.85958345]
[1759773961106,9.89518621,4692.3,4692.2,39.49169645]
[1759773961311,9.89518621,4692.3,4692.2,39.27859645]
[1759773961516,11.12518621,4692.3,4692.2,39.27859645]
[1759773961713,11.12518621,4692.3,4692.2,34.63759645]
[1759773962113,11.12518621,4692.3,4692.2,39.27859645]
[1759773962837,11.89028621,4692.3,4692.2,39.27859645]
[1759773964145,12.34368621,4692.3,4692.2,18.363945]
[1759773964342,13.57368621,4692.3,4692.2,18.119869]
[1759773964529,13.57368621,4692.3,4692.2,22.07680592]
[1759773965131,13.57368621,4692.3,4692.2,23.28209892]
[1759773965338,13.57368621,4692.3,4692.2,22.32826492]
[1759773965755,14.80368621,4692.3,4692.2,22.32826492]
[1759773965948,14.80368621,4692.3,4692.2,19.90226492]
[1759773966127,14.80368621,4692.3,4692.2,22.32826492]
[1759773966328,14.80368621,4692.3,4692.2,23.23151092]
[1759773967038,14.80368621,4692.3,4692.2,1.53093692]
[1759773967238,14.80368621,4692.3,4692.1,0.001]
[1759773967239,17.73940233,4692.3,4692.1,0.001]
[1759773967442,17.73940233,4692.3,4692.2,2.426]
[1759773967639,17.73940233,4692.3,4692.2,5.578385]
[1759773967840,17.73940233,4692.3,4692.2,7.729385]
[1759773968015,17.73940233,4692.3,4692.2,5.303385]
[1759773968224,17.73940233,4692.3,4692.2,4.826]
[1759773968416,17.73940233,4692.3,4692.2,7.908681]
[1759773968616,18.96940233,4692.3,4692.2,4.826]
[1759773968850,18.96940233,4692.3,4692.2,7.192385]
[1759773969217,18.96940233,4692.3,4692.2,10.905027]
[1759773969416,18.96940233,4692.3,4692.2,8.76423]
[1759773970322,20.19940233,4692.3,4692.2,11.54935]
[1759773970524,22.33055336,4692.3,4692.2,2.4]
[1759773970725,22.33055336,4692.3,4692.2,4.826]
[1759773970937,20.19940233,4692.3,4692.2,4.826]
[1759773971522,21.42940233,4692.3,4692.2,4.826]
[1759773972220,19.37668621,4692.3,4692.2,16.10375]
[1759773972453,19.83008621,4692.3,4692.2,4.825]
[1759773972954,21.06008621,4692.3,4692.2,4.825]
[1759773973133,21.06008621,4692.3,4692.2,4.823099]
[1759773973339,21.06008621,4692.3,4692.2,4.825]
[1759773973841,21.95903877,4692.3,4692.2,4.825]
[1759773974056,21.95903877,4692.3,4692.2,2.4]
[1759773974241,2.76479645,4692.2,4692.1,0.001]
[1759773974439,2.76497814,4691.8,4691.7,0.001]
[1759773974672,2.76515987,4691.4,4691.3,0.001]
[1759773974876,3.81622641,4691.4,4691.3,1.169]
[1759773975039,4.26962641,4691.4,4691.3,0.001]
[1759773975244,4.26962641,4691.4,4691.3,1.612]
[1759773975245,8.7132392,4691.4,4691.3,1.612]
[1759773975765,9.9432392,4691.4,4691.3,1.612]
[1759773975981,9.9432392,4691.4,4691.3,0.001]
[1759773976461,9.9432392,4691.4,4691.3,0.014]
[1759773976964,11.1732392,4691.4,4691.3,0.014]
[1759773977127,11.1732392,4691.4,4691.3,0.001]
[1759773977332,2.76520531,4691.3,4690.9,0.001]
[1759773977527,4.37219903,4691.3,4690.9,0.001]
[1759773977746,4.82559903,4691.3,4690.9,0.001]
[1759773978371,6.05559903,4691.3,4690.9,0.001]
[1759773978531,6.05559903,4691.3,4691.2,0.014]
[1759773979262,6.05559903,4691.3,4691.2,0.001]
[1759773979463,8.45559903,4691.3,4691.2,0.001]
[1759773979633,9.68559903,4691.3,4691.2,0.001]
[1759773979960,2.13196887,4690.5,4690.4,0.001]
[1759773980133,7.31558166,4690.5,4690.4,0.001]
[1759773980334,7.76898166,4690.5,4690.4,0.02]
[1759773981029,8.99898166,4690.5,4690.4,0.02]
[1759773981232,8.99898166,4690.5,4690.4,0.001]
[1759773981618,10.1205982,4690.5,4690.4,0.376]
[1759773982446,3.68801654,4690.5,4690.4,0.376]
[1759773982663,2.5664,4690.5,4690.4,0.376]
[1759773983748,3.7964,4690.5,4690.4,3.813436]
[1759773985234,5.0264,4690.5,4690.4,4.261836]
[1759773985471,5.0264,4690.5,4690.4,15.31778732]
[1759773985634,4.92,4690.5,4690.4,15.31778732]
[1759773985840,4.92,4690.5,4690.4,15.85271288]
[1759773986239,4.92,4690.5,4690.4,10.75530532]
[1759773986440,6.15,4690.5,4690.4,24.18761332]
[1759773986762,6.15,4690.5,4690.4,22.47984332]
[1759773987433,6.15,4690.5,4690.4,37.77672717]
[1759773987937,7.38,4690.5,4690.4,39.99072717]
[1759773988644,7.38,4690.5,4690.4,12.74011732]
[1759773988839,7.38,4690.5,4690.4,15.16511732]
[1759773989054,7.38,4690.5,4690.4,15.42803017]
[1759773989256,8.61,4690.5,4690.4,15.42803017]
[1759773989455,8.61,4690.5,4690.4,7.77572717]
[1759773989655,8.61,4690.5,4690.4,37.77572717]
[1759773990376,8.61,4690.5,4690.4,38.04773988]
[1759773990667,9.84,4690.5,4690.4,38.04773988]
[1759773990867,9.84,4690.5,4690.4,38.32484288]
[1759773991439,9.84,4690.5,4690.4,33.68384288]
[1759773991641,9.84,4690.5,4690.4,35.62273988]
[1759773991834,9.84,4690.5,4690.4,40.26273988]
[1759773992040,11.07,4690.5,4690.4,40.26273988]
[1759773992670,11.07,4690.5,4690.4,40.90216218]
[1759773993339,11.07,4690.5,4690.4,40.63014947]
[1759773993536,12.3,4690.5,4690.4,35.99014947]
[1759773993740,12.3,4690.5,4690.4,40.63014947]
[1759773994477,1e-08,4690.5,4690.4,40.63014947]
[1759773994785,0.002,4690.6,4690.5,5.06689443]
[1759773994947,0.002,4691.1,4691.0,2.13174163]
[1759773995144,0.002,4691.1,4691.0,39.61966719]
[1759773995448,0.002,4691.1,4691.0,40.17976719]
[1759773995764,0.002,4691.1,4691.0,37.75476719]
[1759773995969,0.002,4691.1,4691.0,42.12275448]
[1759773996176,1.232,4691.1,4691.0,42.762016]
[1759773997856,2.462,4691.1,4691.0,42.762016]
[1759773999188,3.692,4691.1,4691.0,42.762016]
[1759773999394,3.692,4691.1,4691.0,38.122016]
[1759773999570,3.692,4691.1,4691.0,42.760016]
[1759774000456,4.922,4691.1,4691.0,42.760016]
[1759774000854,4.922,4691.1,4691.0,43.03202871]
[1759774001308,2.46,4691.3,4691.2,2.13165075]
[1759774001490,1.23,4692.4,4691.5,2.13151444]
[1759774001812,1.23,4692.4,4691.5,39.35452715]
[1759774002095,1.232,4691.6,4691.5,40.17784]
[1759774002259,1.232,4691.6,4691.5,40.81705249]
[1759774002692,1.232,4691.6,4691.5,10.81705249]
[1759774003055,1.232,4691.6,4691.5,40.81705249]
[1759774003596,2.462,4691.6,4691.5,42.75903978]
[1759774004865,3.692,4691.6,4691.5,42.75903978]
[1759774006272,4.922,4691.6,4691.5,42.76003978]
[1759774007936,6.152,4691.6,4691.5,42.76003978]
[1759774009176,7.382,4691.6,4691.5,42.76003978]
[1759774009808,7.382,4691.6,4691.5,12.76003978]
[1759774010302,7.382,4691.6,4691.5,42.76003978]
[1759774010475,8.612,4691.6,4691.5,42.76003978]
[1759774011829,1.23,4692.4,4692.2,2.13119645]
[1759774011996,1.23,4692.4,4692.2,40.17752201]
[1759774012197,1.23,4692.4,4692.2,41.69856449]
[1759774012398,1.23,4692.4,4692.2,42.33216449]
[1759774012928,13.6447779,4692.3,4692.2,42.97123672]
[1759774013232,3.41083641,4692.3,4692.2,41.45019424]
[1759774013433,1.23,4692.4,4692.3,4.79406388]
[1759774013725,1.23,4692.4,4692.3,36.7704046]
[1759774014292,1.23,4692.4,4692.3,35.24806388]
[1759774014531,2.46,4692.4,4692.3,35.24806388]
[1759774015102,2.46,4692.4,4692.3,36.31687811]
[1759774015474,2.46,4692.4,4692.3,40.95349252]
[1759774015740,3.69,4692.4,4692.3,40.95349252]
[1759774016534,3.69,4692.4,4692.3,39.43006388]
[1759774016927,3.69,4692.4,4692.3,40.95362727]
[1759774017234,3.69,4692.4,4692.3,11.46102803]
[1759774017444,5.3642,4692.4,4692.3,16.09702803]
[1759774017614,5.3642,4692.4,4692.3,16.73617923]
[1759774018009,4.92,4692.4,4692.3,40.06921508]
[1759774018620,6.15,4692.4,4692.3,40.06921508]
[1759774020154,7.38,4692.4,4692.3,40.06921508]
[1759774021234,7.38,4692.4,4692.3,35.43321508]
[1759774021430,8.61,4692.4,4692.3,40.06821508]
[1759774021632,9.0542,4692.4,4692.3,12.54733723]
[1759774021931,9.0542,4692.4,4692.3,16.54318603]
[1759774022131,8.61,4692.4,4692.3,36.24738192]
[1759774022649,8.61,4692.4,4692.3,36.03775692]
[1759774022849,10.2842,4692.4,4692.3,25.71758392]
[1759774023035,9.84,4692.4,4692.3,41.76509831]
[1759774023233,9.84,4692.4,4692.3,40.50444777]
[1759774024450,11.07,4692.4,4692.3,40.50444777]
[1759774025337,11.07,4692.4,4692.3,40.77646048]
[1759774025721,12.3,4692.4,4692.3,40.88286048]
[1759774027130,13.532,4692.4,4692.3,40.88286048]
[1759774027325,13.532,4692.4,4692.3,40.44666048]
[1759774027856,13.532,4692.4,4692.3,40.88286048]
[1759774028739,14.762,4692.4,4692.3,40.61084777]
[1759774028940,14.762,4692.4,4692.3,40.17464777]
[1759774030024,15.992,4692.4,4692.3,40.17464777]
[1759774030221,15.992,4692.4,4692.3,41.45364777]
[1759774030461,15.992,4692.4,4692.3,40.17464777]
[1759774031149,15.992,4692.4,4692.3,40.38764777]
[1759774031355,17.222,4692.4,4692.3,40.17464777]
[1759774032250,17.222,4692.4,4692.3,10.17464777]
[1759774032457,17.222,4692.4,4692.3,40.17464777]
[1759774032657,18.452,4692.4,4692.3,40.17464777]
[1759774035649,20.1273,4692.4,4692.3,37.77179792]
[1759774035850,21.3573,4692.4,4692.3,37.77179792]
[1759774036358,20.912,4692.4,4692.3,39.90873492]
[1759774037021,20.912,4692.4,4692.3,40.60784777]
[1759774037225,0.002,4692.8,4692.5,2.1310602]
[1759774037421,0.002,4692.8,4692.7,6.44426571]
[1759774037660,0.002,4692.8,4692.7,37.02728222]
[1759774038030,0.002,4692.8,4692.7,38.93878421]
[1759774038228,0.002,4692.8,4692.7,43.57078421]
[1759774038671,1.232,4692.8,4692.7,43.57078421]
[1759774038829,1.232,4692.8,4692.7,44.20976388]
[1759774039258,1.232,4692.8,4692.7,42.29826189]
[1759774039641,1.232,4692.8,4692.7,37.66626189]
[1759774039842,1.232,4692.8,4692.7,37.40334904]
[1759774040071,2.462,4692.8,4692.7,36.76436937]
[1759774040238,2.462,4692.8,4692.7,43.30803832]
[1759774041130,2.462,4692.8,4692.7,41.87228222]
[1759774041370,2.462,4692.8,4692.7,41.65928222]
[1759774041668,3.692,4692.8,4692.7,41.65928222]
[1759774043091,4.922,4692.8,4692.7,41.65928222]
[1759774043453,4.922,4692.8,4692.7,37.02728222]
[1759774043790,5.3673,4692.8,4692.7,41.39636937]
[1759774044589,6.5973,4692.8,4692.7,41.39636937]
[1759774044793,6.5973,4692.8,4692.7,43.308407]
[1759774044952,6.152,4692.8,4692.7,41.65928222]
[1759774045157,6.152,4692.8,4692.7,42.09548222]
[1759774045557,6.152,4692.8,4692.7,41.65928222]
[1759774045790,6.152,4692.8,4692.7,41.98908222]
[1759774045960,3.28694664,4692.8,4692.7,42.36749493]
[1759774046972,3.28694664,4692.8,4692.7,43.00647324]
[1759774047203,0.41398022,4692.8,4692.7,43.00647324]
[1759774047503,1.64398022,4692.8,4692.7,43.00647324]
[1759774048690,1.64398022,4692.8,4692.7,38.37447324]
[1759774048989,2.87398022,4692.8,4692.7,43.00647324]
[1759774049571,7.392,4692.9,4692.8,35.06584952]
[1759774049807,7.392,4692.9,4692.8,37.92104952]
[1759774050376,8.622,4692.9,4692.8,38.56002783]
[1759774050913,8.622,4692.9,4692.8,38.12382783]
[1759774051806,9.852,4692.9,4692.8,38.56002783]
[1759774052176,5.75694664,4692.9,4692.8,38.56002783]
[1759774052376,5.51447598,4692.9,4692.8,38.56002783]
[1759774053077,6.74447598,4692.9,4692.8,38.56002783]
[1759774054415,7.97447598,4692.9,4692.8,38.56002783]
[1759774055079,3.63695196,4692.9,4692.8,38.56002783]
[1759774055483,3.63695196,4692.9,4692.8,39.33842783]
[1759774055885,4.86695196,4692.9,4692.8,39.33842783]
[1759774056110,0.52942794,4692.9,4692.8,36.44482783]
[1759774056318,0.52942794,4692.9,4692.8,41.07682783]
[1759774056511,0.52942794,4692.9,4692.8,41.54302783]
[1759774057147,0.002,4693.3,4693.2,2.13074235]
[1759774057330,0.002,4693.3,4693.2,11.25052727]
[1759774057647,0.002,4693.3,4693.2,11.35680396]
[1759774057848,0.002,4693.3,4693.2,39.02299127]
[1759774058053,0.002,4693.6,4693.5,2.13060615]
[1759774058347,0.002,4693.6,4693.5,7.318919]
[1759774058652,1.232,4693.6,4693.5,37.318919]
[1759774059529,1.232,4693.6,4693.5,37.42631431]
[1759774059924,1.232,4693.6,4693.5,38.79812702]
[1759774060142,2.462,4693.6,4693.5,40.88151802]
[1759774060326,2.462,4693.6,4693.5,38.19050531]
[1759774060645,2.462,4693.6,4693.5,42.55859246]
[1759774061650,3.692,4693.6,4693.5,42.55859246]
[1759774062356,3.692,4693.6,4693.5,42.82150531]
[1759774062949,4.922,4693.6,4693.5,42.82150531]
[1759774064253,6.152,4693.6,4693.5,42.82150531]
[1759774064978,41.71286326,4694.2,4693.9,0.6336]
[1759774065171,38.80351926,4694.2,4694.1,4.53033382]
[1759774065372,38.80351926,4694.2,4694.1,34.79324667]
[1759774065532,38.80351926,4694.2,4694.1,35.53843858]
[1759774065923,38.80351926,4694.2,4694.1,36.44405129]
[1759774066358,38.80351926,4694.2,4694.1,38.35288729]
[1759774066557,38.80351926,4694.2,4694.1,36.44405129]
[1759774066958,40.03351926,4694.2,4694.1,38.35331697]
[1759774067158,40.03351926,4694.2,4694.1,42.98431697]
[1759774067733,40.03351926,4694.2,4694.1,38.35331697]
[1759774068031,40.03351926,4694.2,4694.1,41.07505129]
[1759774068237,41.26351926,4694.2,4694.1,41.07505129]
[1759774068560,41.26351926,4694.2,4694.1,36.44405129]
[1759774068753,41.70691926,4694.2,4694.1,34.63673382]
[1759774068952,41.70691926,4694.2,4694.1,39.26773382]
[1759774069533,41.26351926,4694.2,4694.1,39.26773382]
[1759774069733,42.49351926,4694.2,4694.1,39.26773382]
[1759774070938,42.49351926,4694.2,4694.1,40.43625938]
[1759774071267,43.72351926,4694.2,4694.1,40.43625938]
[1759774072445,44.95351926,4694.2,4694.1,40.16424667]
[1759774072654,45.39691926,4694.2,4694.1,36.17202498]
[1759774072986,45.39691926,4694.2,4694.1,40.80302498]
[1759774073537,44.95351926,4694.2,4694.1,40.80302498]
[1759774073969,46.18351926,4694.2,4694.1,40.80302498]
[1759774075131,46.18351926,4694.2,4694.1,42.71229066]
[1759774075346,47.41351926,4694.2,4694.1,42.71229066]
[1759774075626,47.41351926,4694.2,4694.1,43.45050337]
[1759774075743,47.41351926,4694.2,4694.1,41.54123769]
[1759774076080,31.9640587,4694.2,4694.1,41.43483769]
[1759774076241,0.002,4694.6,4694.5,2.7637523]
[1759774076441,0.002,4694.6,4694.5,37.93107786]
[1759774076678,0.002,4694.6,4694.5,42.56207786]
[1759774076895,0.002,4694.6,4694.5,42.64723869]
[1759774077669,0.002,4694.6,4694.5,42.64623869]
[1759774078069,1.232,4694.6,4694.5,42.64623869]
[1759774079577,2.462,4694.6,4694.5,42.64623869]
[1759774080871,3.692,4694.6,4694.5,42.64623869]
[1759774081176,3.692,4694.6,4694.5,43.11243869]
[1759774081372,3.692,4694.6,4694.5,44.55417238]
[1759774081775,3.692,4694.6,4694.5,39.29057238]
[1759774081975,3.692,4694.6,4694.5,43.64755967]
[1759774082180,4.922,4694.6,4694.5,41.73962598]
[1759774082474,4.922,4694.6,4694.5,42.37322598]
[1759774082675,4.922,4694.6,4694.5,37.38263869]
[1759774082876,5.3654,4694.6,4694.5,42.01163869]
[1759774083194,4.922,4694.6,4694.5,42.01163869]
[1759774083401,4.922,4694.6,4694.5,37.38263869]
[1759774083602,6.152,4694.6,4694.5,41.71163869]
[1759774083764,6.152,4694.6,4694.5,37.08263869]